Cogmind - Beta 12 @@@ ROGUE MODE // 2023.05.18 @ 14:14:20 Player: Raragi Result: Destroyed by S-43 Plague with Heavy Machine Gun Performance ------------- Evolutions (7) 3500 Regions Visited (12) 2400 Robots Destroyed (70) 350 Value Destroyed (2238) 2238 Prototype IDs (10) 200 Alien Tech Used (0) 0 Bonus (196) 196 TOTAL SCORE: 8884 Bonus ------- High Alert Combat Kills 175 Follower Combat Kills 21 Cogmind --------- Core Integrity 0/1300 Matter 300/300 Energy 40/100 System Corruption 2% Temperature Cool (0) Movement Core (150) Ox2 Location -3/Research Parts ------- > --- POWER (2) -------- (None) > --- PROPULSION (6) --- (None) > --- UTILITY (11) ----- Improved Melee Analysis Suite Focal Shield Improved System Shield > --- WEAPON (2) ------- Dispersion Rifle > --- INVENTORY (5) ---- Improved Gyrokinetic Inverter Antimissile System Long-range Proton Cannon Peak State ------------ > --- POWER ------------ Light Antimatter Reactor Light Antimatter Reactor > --- PROPULSION ------- Xenon Bombardment Thruster Xenon Bombardment Thruster Xenon Bombardment Thruster Xenon Bombardment Thruster Xenon Bombardment Thruster Xenon Bombardment Thruster > --- UTILITY ---------- Medium Storage Unit Targeting Computer Improved Melee Analysis Suite Focal Shield Advanced Hacking Suite System Shield Improved System Shield > --- WEAPON ----------- (None) > --- INVENTORY -------- Light Nuclear Core Improved Gyrokinetic Inverter Xenon Bombardment Thruster Xenon Bombardment Thruster Antimissile System Dispersion Rifle Long-range Proton Cannon Heavy Machine Gun Enhanced Coil Gun [Rating: 68] Favorites ----------- Power Light Nuclear Core Engine Light Ion Engine Power Core Light Nuclear Core Reactor Light Antimatter Reactor Propulsion VTOL Module Treads Medium Treads Leg Aluminum Leg Wheel Wheel Hover Unit Cooled Airjet Flight Unit VTOL Module Utility Improved System Shield Device Phase Shifter Storage Medium Storage Unit Processor Improved Signal Interpreter Hackware Improved System Shield Protection Propulsion Shielding Weapon Heavy Assault Rifle Energy Gun Wave Gun Energy Cannon Ion Cannon Ballistic Gun Heavy Assault Rifle Ballistic Cannon Mass Driver Launcher Heavy Missile Launcher Slashing Weapon Katana Piercing Weapon Heavy Pick Build | -11 -10 -10 -9 -9 -8 -7 -6 -6 -6 -5 -4 -3 ------- Run | Jun Mat Min Mat Min Mat Fac Fac Was Fac Fac Fac Res Slots Evolved 14 | . . . 2 . 2 2 2 . . 2 2 2 Power 1 | . . . . . . . 1 . . . . . Propulsion 4 | . . . 1 . 1 1 . . . . 1 . Utility 9 | . . . 1 . 1 1 1 . . 2 1 2 Weapon . | . . . . . . . . . . . . . Parts Attached 167 | 6 6 . 7 . 8 41 30 . . 38 9 22 Power 27 | 1 1 . 1 . 2 6 3 . . 9 . 4 Engine 11 | 1 1 . 1 . 2 5 1 . . . . . Core 14 | . . . . . . 1 2 . . 9 . 2 Reactor 2 | . . . . . . . . . . . . 2 Propulsion 60 | 2 3 . 3 . 2 15 10 . . 13 3 9 Treads 6 | . . . . . . 5 . . . . 1 . Leg 11 | 2 3 . . . . 4 1 . . 1 . . Wheel 1 | . . . . . . . . . . . 1 . Hover 9 | . . . . . . 3 3 . . 1 1 1 Flight 33 | . . . 3 . 2 3 6 . . 11 . 8 Utility 37 | 1 . . 2 . 2 10 10 . . 6 1 5 Device 16 | . . . . . 1 5 5 . . 4 . 1 Storage 5 | 1 . . . . . 1 . . . 1 1 1 Processor 6 | . . . . . . 2 2 . . 1 . 1 Hackware 4 | . . . . . . . 2 . . . . 2 Protection 6 | . . . 2 . 1 2 1 . . . . . Artifact . | . . . . . . . . . . . . . Weapon 43 | 2 2 . 1 . 2 10 7 . . 10 5 4 Energy Gun 13 | 2 . . . . 2 4 1 . . 2 1 1 Energy Cannon 6 | . . . . . . 3 . . . 1 1 1 Ballistic Gun 12 | . 2 . 1 . . 1 1 . . 5 1 1 Ballistic Cannon 1 | . . . . . . . . . . 1 . . Launcher 5 | . . . . . . 2 1 . . . 2 . Special Weapon . | . . . . . . . . . . . . . Impact Weapon . | . . . . . . . . . . . . . Slashing Weapon 1 | . . . . . . . 1 . . . . . Piercing Weapon 5 | . . . . . . . 3 . . 1 . 1 Special Melee Weapon . | . . . . . . . . . . . . . Unidentified Prototypes 10 | . . . . . . 4 1 . . 2 3 . Parts Lost 81 | . . 2 . . 2 17 12 1 1 13 16 17 Power 16 | . . 1 . . 1 2 3 . . 4 1 4 Propulsion 36 | . . . . . . 6 8 . . 5 8 9 Utility 18 | . . . . . 1 5 1 1 1 2 4 3 Weapon 11 | . . 1 . . . 4 . . . 2 3 1 Highest Loss Streak 12 | . . 2 . . 1 11 7 1 2 10 12 12 To Critical Strikes . | . . . . . . . . . . . . . Average Slot Usage (%) 65 | . 84 78 63 77 79 67 82 36 26 55 46 42 Engine 3 | . 14 7 5 11 8 4 1 . . . . . Core 3 | . . . . . . . 6 . . 7 3 . Treads 2 | . . . . . . 9 . . . . . . Leg 5 | . 28 28 1 . . 6 2 . . 1 . . Hover 5 | . . . . . . 4 17 4 . . . 1 Flight 10 | . . . 30 33 36 5 6 . . 10 14 12 Device 4 | . . . . . 5 5 4 . . 8 2 2 Storage 4 | . 14 14 11 11 9 3 6 4 . . 2 1 Processor 9 | . . . . . . 14 13 13 13 8 9 8 Hackware 5 | . . . . . . . 10 13 13 11 8 8 Protection 2 | . . . 13 22 18 1 . . . . . . Energy Gun 1 | . 2 . . . 2 1 . . . 1 . . Ballistic Gun 3 | . 24 28 . . . 1 . . . 3 . 1 Piercing Weapon 1 | . . . . . . . 5 . . . 1 . Naked Turns . | . . . . . . . . . . . . . Heaviest Build 41 | 11 14 14 10 10 15 29 41 10 . 26 33 35 Greatest Support 132 | 20 20 20 20 12 17 132 42 12 3 20 30 36 Greatest Overweight (x) 9 | . . . . . . 3 2 . . 4 4 9 Average Overweight (x) . | . . . . . . . . . . . . . Largest Inventory Capacity 10 | 8 8 8 8 8 8 10 10 10 5 10 10 10 Average Capacity 7 | 6 8 8 8 8 8 7 10 9 5 5 7 6 Most Carried 10 | 4 8 8 8 8 8 10 10 10 5 5 10 9 Average Carried 6 | 1 7 8 6 8 7 5 9 8 5 4 6 4 Final Capacity 10 | 8 8 8 8 8 8 10 10 5 5 5 5 5 Final Carried 10 | 4 8 8 8 8 8 10 9 5 5 5 5 3 Class Distribution -------------------- 42% | Mutant 26% | Hacker-Mutant 11% | Sprinter 10% | Scavenger-Sprinter 6% | Scavenger-Mutant 3% | Hacker-Scout Dominant Class ---------------- Mutant | -10/Materials Mutant | -10/Mines Sprinter | -9/Materials Sprinter | -9/Mines Sprinter | -8/Materials Mutant | -7/Factory Hacker-Mutant | -6/Factory Hacker-Mutant | -6/Waste Hacker-Mutant | -6/Factory Hacker-Mutant | -5/Factory Mutant | -4/Factory Scavenger-Sprinter | -3/Research Resources | -11 -10 -10 -9 -9 -8 -7 -6 -6 -6 -5 -4 -3 ----------- Run | Jun Mat Min Mat Min Mat Fac Fac Was Fac Fac Fac Res Matter Collected 2237 | 181 230 . . 51 58 455 269 . . 624 122 247 Remotely . | . . . . . . . . . . . . . Salvage Created 2640 | . 291 . . . 58 759 242 . . 635 288 367 Parts 155 | . 27 . . . 1 38 15 . . 42 12 20 Haulers Intercepted 4 | . . . . . 1 2 . . . . 1 . Recyclers Shooed 1 | . . . . . . . . . . . . 1 Parts Field Recycled . | . . . . . . . . . . . . . Retrieved Matter . | . . . . . . . . . . . . . Parts Self-Destructed . | . . . . . . . . . . . . . Prevented . | . . . . . . . . . . . . . Kills | -11 -10 -10 -9 -9 -8 -7 -6 -6 -6 -5 -4 -3 ------- Run | Jun Mat Min Mat Min Mat Fac Fac Was Fac Fac Fac Res Combat Hostiles Destroyed 50 | . 11 . . . . 11 4 . . 17 1 6 Melee 5 | . . . . . . 1 3 . . . . 1 Guns 31 | . 11 . . . . 4 . . . 10 1 5 Cannons 3 | . . . . . . 2 . . . 1 . . AOE 11 | . . . . . . 4 1 . . 6 . . Classes Destroyed 13 | . 2 . . . 1 6 3 . . 1 . . Worker 6 | . . . . . . 4 1 . . 1 . . Builder 1 | . . . . . . 1 . . . . . . Tunneler 1 | . . . . . . . 1 . . . . . Hauler 4 | . . . . . 1 2 . . . . 1 . Recycler 5 | . . . . . . 1 1 . . 1 1 1 Mechanic 1 | . . . . . . 1 . . . . . . Watcher 2 | . . . . . . . . . . 2 . . Swarmer 31 | . 6 . . . . 4 . . . 15 . 6 Cutter 2 | . . . . . . . 2 . . . . . Grunt 9 | . 5 . . . . 4 . . . . . . Sentry 3 | . . . . . . 2 1 . . . . . Hunter 3 | . . . . . . 1 . . . 2 . . Programmer 2 | . . . . . . . 1 . . . 1 . Best Kill Streak 7 | . 4 . . . 1 5 3 . . 7 1 4 Combat Bots Only 7 | . 4 . . . . 4 2 . . 7 1 4 Max Kills in Single Turn 4 | . 1 . . . 1 4 2 . . 4 1 1 Gunslinging . | . . . . . . . . . . . . . Exploded 4 | . . . . . . 2 1 . . 4 . . Melee 1 | . . . . . . 1 1 . . . . 1 Uniques/NPCs Destroyed . | . . . . . . . . . . . . . Combat | -11 -10 -10 -9 -9 -8 -7 -6 -6 -6 -5 -4 -3 -------- Run | Jun Mat Min Mat Min Mat Fac Fac Was Fac Fac Fac Res Damage Taken 10222 | . 332 286 11 101 155 2316 1687 42 69 1039 1825 2359 Core 3742 | . 35 39 . 27 28 689 481 42 64 246 781 1310 Absorbed by Shields 26 | . . . . . . 26 . . . . . . Redirected to Shielding 66 | . . . 3 6 13 44 . . . . . . Core Remaining (%) 61 | 100 . 70 . 93 94 1 . . 30 75 32 . Volleys Fired 155 | . 25 1 . . 2 49 4 . . 41 11 22 Largest 2 | . 2 2 . . 1 2 1 . . 2 2 1 Hottest 179 | . 46 46 . . 63 120 43 . . 179 130 88 Shots Fired 209 | . 50 2 . . 2 66 4 . . 51 12 22 Gun 168 | . 50 2 . . 2 43 . . . 40 9 22 Cannon 34 | . . . . . . 21 . . . 11 2 . Launcher 7 | . . . . . . 2 4 . . . 1 . Special . | . . . . . . . . . . . . . Kinetic 114 | . 50 2 . . . 18 . . . 21 9 14 Thermal 60 | . . . . . 2 20 . . . 30 . 8 Explosive 6 | . . . . . . 2 4 . . . . . Electromagnetic 29 | . . . . . . 26 . . . . 3 . Robot Hit Streak 26 | . 9 6 . . 1 26 1 . . 8 6 13 Robot Miss Streak 8 | . 3 . . . 1 3 2 . . 8 3 1 Penetration Max 1 | . . . . . . . . . . 1 . . Secondary Targets 4 | . 3 . . . . 1 . . . . . . Max Gunslinging Chain 1 | . 1 . . . . 1 . . . . . . Shots Hit Robots 161 | . 32 2 . . 1 54 10 . . 32 10 20 Core Hits 98 | . 15 1 . . 1 31 11 . . 21 8 10 Critical Kills 3 | . . . . . . . . . . 1 1 1 Critical Parts Destroyed 3 | . . . . . . . . . . . . 3 Critical Strikes 11 | . . . . . . 1 1 . . 3 1 5 Burn 2 | . . . . . . . . . . 2 . . Destroy 6 | . . . . . . . . . . 1 1 4 Corrupt 1 | . . . . . . 1 . . . . . . Impale 2 | . . . . . . . 1 . . . . 1 Melee Attacks 26 | . . . . . . . 18 . . . 3 5 Impact . | . . . . . . . . . . . . . Slashing . | . . . . . . . . . . . . . Piercing 26 | . . . . . . . 18 . . . 3 5 Sneak Attacks 3 | . . . . . . . 1 . . . 2 . Combat Hostiles . | . . . . . . . . . . . . . Follow-up Attacks 2 | . . . . . . . 2 . . . . . Damage Inflicted 6591 | . 494 29 . . 17 2329 854 . . 1743 546 579 Guns 2642 | . 494 29 . . 17 765 . . . 631 164 542 Cannons 688 | . . . . . . 333 . . . 343 12 . Explosions 2683 | . . . . . . 1209 484 . . 769 221 . Melee 529 | . . . . . . . 370 . . . 127 32 Ramming 49 | . . . . . . 22 . . . . 22 5 Kinetic 1908 | . 494 29 . . . 300 . . . 541 164 380 Thermal 1607 | . . . . . 17 995 . . . 433 . 162 Explosive 1957 | . . . . . . 516 484 . . 769 188 . Electromagnetic 541 | . . . . . . 496 . . . . 45 . Impact . | . . . . . . . . . . . . . Slashing . | . . . . . . . . . . . . . Piercing 529 | . . . . . . . 370 . . . 127 32 Highest Corruption 10 | . 3 3 . . . 3 6 6 6 . 10 1 Average Corruption 3 | . 2 3 . . . 2 4 6 6 . 4 1 Corruption Purged . | . . . . . . . . . . . . . Corruption Blocked . | . . . . . . . . . . . . . Effects 21 | . 1 1 . . . 11 3 1 . . 4 . Message Errors 4 | . 1 . . . . 2 1 . . . . . Matter Fused 4 | . . 1 . . . 2 1 . . . . . Heat Flow Errors 2 | . . . . . . 1 . . . . 1 . Energy Discharges 3 | . . . . . . 2 . . . . 1 . Data Loss (minor) 4 | . . . . . . 2 1 . . . 1 . Data Loss (major) 2 | . . . . . . 1 . 1 . . . . Alerts 1 | . . . . . . 1 . . . . . . Weapon Failures 1 | . . . . . . . . . . . 1 . Overload Shots . | . . . . . . . . . . . . . Overflow Damage 433 | . . . . . . 218 24 . . 151 40 . Projectiles 7 | . . . . . . . . . . 7 . . Explosions 366 | . . . . . . 218 4 . . 144 . . Melee 60 | . . . . . . . 20 . . . 40 . Knockbacks . | . . . . . . . . . . . . . Impact . | . . . . . . . . . . . . . Kinetic . | . . . . . . . . . . . . . Secondary . | . . . . . . . . . . . . . Self-Inflicted Damage 606 | . . . . . . 309 . . . 273 22 2 Shots 10 | . . . . . . 6 . . . 3 1 . Rammed 13 | . . . . . . 6 . . . . 3 4 Targets Rammed 13 | . . . . . . 6 . . . . 3 4 Kicked . | . . . . . . . . . . . . . Crushed . | . . . . . . . . . . . . . Highest Temperature 374 | . 22 . . 1 22 244 . . . 374 120 207 Average Temperature 77 | . 7 . . 1 9 35 . . . 101 24 112 Received Heat Transfer 999 | . 135 . 6 9 54 462 228 . 24 . 54 27 Effects 1 | . . . . . . . . . . 1 . . Shutdowns 1 | . . . . . . . . . . 1 . . Siege Activations . | . . . . . . . . . . . . . Robots Corrupted . | . . . . . . . . . . . . . Combat Hostiles . | . . . . . . . . . . . . . Parts Fried 2 | . . . . . . 2 . . . . . . Impact Corruptions . | . . . . . . . . . . . . . Robots Melted . | . . . . . . . . . . . . . Combat Hostiles . | . . . . . . . . . . . . . Parts Melted 4 | . . . . . . 3 . . . 1 . . Heat Transferred 2143 | . . . . . 37 1068 . . . 816 . 222 Parts Sabotaged . | . . . . . . . . . . . . . Parts Stolen . | . . . . . . . . . . . . . Parts Stripped . | . . . . . . . . . . . . . Power Chain Reactions 2 | . . . . . . 2 . . . . . . Missiles Intercepted . | . . . . . . . . . . . . . Alert | -11 -10 -10 -9 -9 -8 -7 -6 -6 -6 -5 -4 -3 ------- Run | Jun Mat Min Mat Min Mat Fac Fac Was Fac Fac Fac Res Peak Influence 719 | . 374 145 120 142 252 719 481 98 76 606 445 362 Initial 285 | . . 145 48 46 55 114 285 53 61 32 275 222 Average 286 | . 133 136 64 113 127 420 239 73 67 367 379 299 Maximum Alert Level 3 | . 1 . . . 1 3 2 . . 2 2 1 Low Security (%) 35 | 100 64 100 100 100 76 8 41 100 100 29 . . Level 1 29 | . 35 . . . 23 19 33 . . 13 48 100 Level 2 34 | . . . . . . 65 24 . . 57 51 . Level 3 1 | . . . . . . 7 . . . . . . Level 4 . | . . . . . . . . . . . . . Level 5 . | . . . . . . . . . . . . . High Security . | . . . . . . . . . . . . . Max Security . | . . . . . . . . . . . . . Squads Dispatched 23 | . 2 . 1 . 2 7 5 . . 2 2 2 Investigation 5 | . . . 1 . 1 1 2 . . . . . Extermination 2 | . . . . . . . 1 . . . . 1 Reinforcement 12 | . 2 . . . 1 2 2 . . 2 2 1 Assault 1 | . . . . . . 1 . . . . . . Garrison 3 | . . . . . . 3 . . . . . . Intercept . | . . . . . . . . . . . . . Searches Triggered 1 | . . . . . . . 1 . . . . . Construction Impeded 1 | . . . . . . 1 . . . . . . Haulers Reinforced 1 | . . . . . . . . . . 1 . . Active Scanning Responses . | . . . . . . . . . . . . . Cargo Convoy Interrupts . | . . . . . . . . . . . . . Stealth | -11 -10 -10 -9 -9 -8 -7 -6 -6 -6 -5 -4 -3 --------- Run | Jun Mat Min Mat Min Mat Fac Fac Was Fac Fac Fac Res Distress Signals 8 | . 1 . . . 1 . 3 . . 1 2 . Communications Jammed . | . . . . . . . . . . . . . Distress Signals . | . . . . . . . . . . . . . Times Spotted 216 | . 18 2 9 8 22 36 39 6 1 29 26 20 Peak Tracking Total 16 | . 5 2 9 5 16 7 13 6 1 7 12 9 Tactical Retreats 28 | . 1 . 1 . 1 7 8 . . 4 3 3 Traps | -11 -10 -10 -9 -9 -8 -7 -6 -6 -6 -5 -4 -3 ------- Run | Jun Mat Min Mat Min Mat Fac Fac Was Fac Fac Fac Res Traps Triggered 7 | . 2 . . . . . 1 . . 1 2 1 Indirectly . | . . . . . . . . . . . . . Trap Hack Attempts . | . . . . . . . . . . . . . Triggered . | . . . . . . . . . . . . . Disarmed . | . . . . . . . . . . . . . Reprogrammed . | . . . . . . . . . . . . . Reused . | . . . . . . . . . . . . . Traps Extracted . | . . . . . . . . . . . . . Installed . | . . . . . . . . . . . . . Triggered . | . . . . . . . . . . . . . Machines | -11 -10 -10 -9 -9 -8 -7 -6 -6 -6 -5 -4 -3 ---------- Run | Jun Mat Min Mat Min Mat Fac Fac Was Fac Fac Fac Res Machines Disabled 27 | . 1 . . . . 15 1 . . 6 4 . Max in Single Turn 6 | . 1 . . . . 6 1 . . 4 3 . Garrison Access 2 | . . . . . . 1 . . . 1 . . Machines Repaired . | . . . . . . . . . . . . . Machines Sabotaged . | . . . . . . . . . . . . . Overloaded Fab Kills . | . . . . . . . . . . . . . Hacking | -11 -10 -10 -9 -9 -8 -7 -6 -6 -6 -5 -4 -3 --------- Run | Jun Mat Min Mat Min Mat Fac Fac Was Fac Fac Fac Res Machines Accessed 33 | . 4 1 3 . 2 4 10 . . 3 5 1 Terminals 21 | . 2 1 2 . 2 4 5 . . 1 3 1 Fabricators 2 | . . . . . . . 1 . . . 1 . Repair Stations 3 | . 1 . . . . . 1 . . 1 . . Recycling Units 4 | . 1 . . . . . 2 . . . 1 . Scanalyzers 2 | . . . 1 . . . 1 . . . . . Garrison Access 1 | . . . . . . . . . . 1 . . Total Hacks 86 | . 5 3 8 . 8 12 33 . . 5 8 4 Successful 49 | . 4 1 5 . 3 6 22 . . 3 3 2 Failed 37 | . 1 2 3 . 5 6 11 . . 2 5 2 Catastrophic 7 | . . . 1 . 1 1 1 . . . 2 1 Database Lockouts . | . . . . . . . . . . . . . Manual 58 | . 4 3 3 . 7 8 20 . . 4 5 4 Terminals 64 | . 2 3 5 . 8 12 21 . . 3 6 4 Fabricators 3 | . . . . . . . 2 . . . 1 . Repair Stations 4 | . 1 . . . . . 2 . . 1 . . Recycling Units 7 | . 2 . . . . . 4 . . . 1 . Scanalyzers 7 | . . . 3 . . . 4 . . . . . Garrison Access 1 | . . . . . . . . . . 1 . . Terminal Hacks 11 | . . . 1 . . 1 6 . . . 2 1 Record 2 | . . . . . . . 1 . . . 1 . Part Schematic 3 | . . . . . . . 2 . . . . 1 Open DSF 1 | . . . . . . . . . . . 1 . Branch Access Points 1 | . . . . . . . 1 . . . . . Unreport Threat 2 | . . . . . . . 2 . . . . . Locate Traps 2 | . . . 1 . . 1 . . . . . . Fabricator Hacks 2 | . . . . . . . 2 . . . . . Load Schematic 1 | . . . . . . . 1 . . . . . Build 1 | . . . . . . . 1 . . . . . Repair Station Hacks . | . . . . . . . . . . . . . Recycling Unit Hacks . | . . . . . . . . . . . . . Scanalyzer 5 | . . . 2 . . . 3 . . . . . Insert Component 2 | . . . 1 . . . 1 . . . . . Analyze 3 | . . . 1 . . . 2 . . . . . Garrison Access Hacks 1 | . . . . . . . . . . 1 . . Seal Access 1 | . . . . . . . . . . 1 . . Unauthorized Hacks 30 | . 4 1 2 . 3 5 11 . . 2 1 1 Terminals 25 | . 2 1 2 . 3 5 8 . . 2 1 1 Assimilate 4 | . . . . . 1 1 1 . . 1 . . Botnet 19 | . 2 1 2 . 2 4 5 . . 1 1 1 Disrupt 1 | . . . . . . . 1 . . . . . Operators 1 | . . . . . . . 1 . . . . . Fabricators . | . . . . . . . . . . . . . Repair Stations 1 | . 1 . . . . . . . . . . . Mechanics 1 | . 1 . . . . . . . . . . . Recycling Units 4 | . 1 . . . . . 3 . . . . . Monitor 1 | . . . . . . . 1 . . . . . Reject 3 | . 1 . . . . . 2 . . . . . Scanalyzers . | . . . . . . . . . . . . . Garrison Access . | . . . . . . . . . . . . . Data Cores Recovered . | . . . . . . . . . . . . . Used . | . . . . . . . . . . . . . Hacking Detections 26 | . 1 1 2 . 2 3 9 . . 2 5 1 Full Trace Events 6 | . . . 1 . 2 1 2 . . . . . Feedback Events . | . . . . . . . . . . . . . Feedback Blocked . | . . . . . . . . . . . . . Robot Schematics Acquired . | . . . . . . . . . . . . . Robots Built . | . . . . . . . . . . . . . Authchips . | . . . . . . . . . . . . . Time . | . . . . . . . . . . . . . Total Robot Build Rating . | . . . . . . . . . . . . . Part Schematics Acquired 3 | . . . 1 . . . 2 . . . . . Parts Built 1 | . . . . . . . 1 . . . . . Authchips . | . . . . . . . . . . . . . Time 36 | . . . . . . . 36 . . . . . Total Part Build Rating 3 | . . . . . . . 3 . . . . . Parts Repaired . | . . . . . . . . . . . . . Time . | . . . . . . . . . . . . . Parts Recycled . | . . . . . . . . . . . . . Recycled Matter . | . . . . . . . . . . . . . Retrieved Matter . | . . . . . . . . . . . . . Retrieved Components . | . . . . . . . . . . . . . Parts Scanalyzed 2 | . . . 1 . . . 1 . . . . . Part Schematics Acquired 1 | . . . 1 . . . . . . . . . Parts Damaged . | . . . . . . . . . . . . . Bothacking | -11 -10 -10 -9 -9 -8 -7 -6 -6 -6 -5 -4 -3 ------------ Run | Jun Mat Min Mat Min Mat Fac Fac Was Fac Fac Fac Res Used RIF Installer . | . . . . . . . . . . . . . Robots Hacked . | . . . . . . . . . . . . . Non-combat . | . . . . . . . . . . . . . Combat . | . . . . . . . . . . . . . Robot Hacks Applied . | . . . . . . . . . . . . . Relay Couplers Released 2 | . . . . . . 2 . . . . . . Machine Destruction 2 | . . . . . . 2 . . . . . . Fabnet Peak Effective % . | . . . . . . . . . . . . . Robots Rewired . | . . . . . . . . . . . . . Allies Hacked . | . . . . . . . . . . . . . Hacks Repelled . | . . . . . . . . . . . . . Allies | -11 -10 -10 -9 -9 -8 -7 -6 -6 -6 -5 -4 -3 -------- Run | Jun Mat Min Mat Min Mat Fac Fac Was Fac Fac Fac Res Total Allies 5 | . . . . 3 . . 1 . . 1 . . Largest Group 3 | . . . . 3 . . 1 . . 1 . . Highest-Rated Group 40 | . . . . 40 . . 10 . . 26 . . Highest-Rated Ally 26 | . . . . 16 . . 10 . . 26 . . Total Orders . | . . . . . . . . . . . . . Ally Attacks 7 | . . . . 7 . . . . . . . . Total Damage 73 | . . . . 73 . . . . . . . . Kills 3 | . . . . 3 . . . . . . . . Allies Corrupted . | . . . . . . . . . . . . . Allies Melted . | . . . . . . . . . . . . . Intel | -11 -10 -10 -9 -9 -8 -7 -6 -6 -6 -5 -4 -3 ------- Run | Jun Mat Min Mat Min Mat Fac Fac Was Fac Fac Fac Res Robot Analysis Total . | . . . . . . . . . . . . . Derelict Logs Recovered 1 | . . . . 1 . . . . . . . . Drone Launches . | . . . . . . . . . . . . . Drone Recoveries . | . . . . . . . . . . . . . Exploration | -11 -10 -10 -9 -9 -8 -7 -6 -6 -6 -5 -4 -3 ------------- Run | Jun Mat Min Mat Min Mat Fac Fac Was Fac Fac Fac Res Turns Passed 3664 | 81 316 20 126 101 150 851 719 66 15 662 262 295 Spaces Moved 5035 | 58 181 14 282 338 362 777 1108 91 30 874 566 354 Core 493 | 4 . . . . . 90 . 26 30 204 78 61 Treads 80 | . . . . . . 78 . . . . 2 . Legs 585 | 54 181 14 3 . . 224 . . . 109 . . Wheels 1 | . . . . . . . . . . . 1 . Hover 767 | . . . . . . 71 586 65 . . . 45 Flight 3109 | . . . 279 338 362 314 522 . . 561 485 248 Fastest Speed 23 | 50 120 120 29 29 26 23 27 50 50 23 23 25 Average Speed 51 | 115 120 120 29 29 26 80 48 71 50 51 35 39 Slowest Speed 500 | 120 120 120 120 29 26 275 150 80 50 365 352 500 Overloaded Moves 9 | . . . . . . . 9 . . . . . Propulsion Burnouts . | . . . . . . . . . . . . . Robots Hopped 23 | . . . 1 3 12 1 2 . . . 2 2 Cave-ins Triggered . | . . . . . . . . . . . . . Exploration Rate (%) 25 | 3 39 9 22 69 28 18 27 70 1 17 19 11 Regions Visited 12 Branch Regions 2 Pre-discovered Areas . | . . . . . . . . . . . . . Known Exits Taken 3 | . . . . . . 1 . . 1 1 . . Unknown Exits Taken 7 | 1 1 1 1 1 1 . . . . . 1 . Scrap Searched 1 | . . . . 1 . . . . . . . . Spaces Dug . | . . . . . . . . . . . . . Terrain Destroyed 197 | . . . . . . 67 31 . . 84 13 2 Melee . | . . . . . . . . . . . . . Projectile 24 | . . . . . . . . . . 9 13 2 AOE 173 | . . . . . . 67 31 . . 75 . . Terrain Rammed . | . . . . . . . . . . . . . Walls Destroyed . | . . . . . . . . . . . . . Machines Disabled . | . . . . . . . . . . . . . Actions | -11 -10 -10 -9 -9 -8 -7 -6 -6 -6 -5 -4 -3 --------- Run | Jun Mat Min Mat Min Mat Fac Fac Was Fac Fac Fac Res Total 5813 | 69 235 15 321 337 405 930 1264 91 29 1036 610 471 Wait 270 | 2 8 1 27 3 31 20 66 . . 56 . 56 Move 4978 | 57 180 13 279 331 337 774 1104 90 29 873 561 350 Hop 23 | . . . 1 3 12 1 2 . . . 2 2 Pick Up 70 | 4 6 . 3 . 7 14 11 1 . 9 8 7 Fast Attach 99 | 6 2 . 4 . . 26 11 . . 30 6 14 Attach 56 | . . . 3 . 4 12 18 . . 7 4 8 Detach 41 | . 2 . . . 1 10 17 . . 6 4 1 Swap 13 | . 4 . . . 4 3 1 . . 1 . . Drop 72 | . 8 . 4 . 7 15 15 . . 13 8 2 Fire 155 | . 25 1 . . 2 49 4 . . 41 11 22 Melee 23 | . . . . . . . 15 . . . 3 5 Ram 13 | . . . . . . 6 . . . . 3 4 Kick . | . . . . . . . . . . . . . Crush . | . . . . . . . . . . . . . Escape Stasis . | . . . . . . . . . . . . . Rewire . | . . . . . . . . . . . . . Trap . | . . . . . . . . . . . . . Miscellaneous . | . . . . . . . . . . . . . Route ------- -11/Junkyard -10/Materials -10/Mines -9/Materials -9/Mines -8/Materials -7/Factory (discovered 2 exits: *Fac / Sto) -6/Factory (discovered 2 exits: Low x2) -6/Waste -6/Factory -5/Factory -4/Factory (discovered 2 exits: *Res / [*Arm]) -3/Research History --------- Turn | Location | Event 3 | -11/Junkyard | Discovered new exit (range 15) 82 | -11/Junkyard | Entered Materials 236 | -10/Materials | Discovered new exit (range 6) 315 | -10/Materials | Build established: Mutant 398 | -10/Materials | Entered Mines 399 | -10/Mines | Assembled infested the area 404 | -10/Mines | Assisted by a Guerilla fighting off Assembled 405 | -10/Mines | Discovered new exit (range 8) 414 | -10/Mines | Received a Rocket Launcher from a helpful Derelict 418 | -10/Mines | Entered Materials 418 | -9/Materials | Evolved 2 slots: Propulsion x1, Utility x1 500 | -9/Materials | Discovered new exit (range 6) 544 | -9/Materials | Entered Mines 554 | -9/Mines | Assisted by bots powering up and referring to "LRC-V3" 636 | -9/Mines | Discovered new exit (range 12) 645 | -9/Mines | Entered Materials 645 | -8/Materials | Evolved 2 slots: Propulsion x1, Utility x1 749 | -8/Materials | Build established: Sprinter 794 | -8/Materials | Discovered new exit (range 6) 795 | -8/Materials | Entered Factory 795 | -7/Factory | Evolved 2 slots: Propulsion x1, Utility x1 796 | -7/Factory | Identified exit to Storage 909 | -7/Factory | Core integrity fell below 50% 928 | -7/Factory | Lost 11 parts (1p5n3u2w) 960 | -7/Factory | Core integrity fell below 20% 1156 | -7/Factory | Build established: Mutant 1635 | -7/Factory | Discovered new exit (range 5) 1643 | -7/Factory | Identified exit to Factory 1646 | -7/Factory | Entered another Factory area 1646 | -6/Factory | Evolved 2 slots: Power x1, Utility x1 1996 | -6/Factory | Search patrols dispatched 2019 | -6/Factory | Identified exit to Lower Caves 2073 | -6/Factory | Build established: Hacker-Mutant 2195 | -6/Factory | Fabricated Imp. Sensor Array (x1) 2240 | -6/Factory | Lost 3 parts (1p2n) 2327 | -6/Factory | Core integrity fell below 50% 2344 | -6/Factory | Lost 7 parts (1p5n1u) 2365 | -6/Factory | Sucked down chute 2365 | -6/Factory | Entered Waste 2371 | -6/Waste | Found Broken Enh. Force Lance 2379 | -6/Waste | Spotted C-40 Crusher 2379 | -6/Waste | Spotted C-40 Crusher 2402 | -6/Waste | Spotted C-40 Crusher 2408 | -6/Waste | Spotted C-40 Crusher 2415 | -6/Waste | Spotted C-40 Crusher 2415 | -6/Waste | Spotted C-40 Crusher 2418 | -6/Waste | Crushed by Compactor (1 part destroyed, 1 dropped) 2427 | -6/Waste | Discovered new exit (range 10) 2431 | -6/Waste | Identified exit to Factory 2431 | -6/Waste | Entered Factory 2437 | -6/Factory | Discovered new exit (range 10) 2446 | -6/Factory | Identified exit to Factory 2446 | -6/Factory | Entered another Factory area 2446 | -5/Factory | Evolved 2 slots: Utility x2 2749 | -5/Factory | Destroyed 7 combat bots 2759 | -5/Factory | Lost 10 parts (2p4n2u2w) 3104 | -5/Factory | Discovered new exit (range 15) 3108 | -5/Factory | Identified exit to Factory 3108 | -5/Factory | Entered another Factory area 3108 | -4/Factory | Evolved 2 slots: Propulsion x1, Utility x1 3115 | -4/Factory | Identified exit to DSF 3184 | -4/Factory | Spotted B-86 Titan 3193 | -4/Factory | Discovered new exit (range 12) 3317 | -4/Factory | Lost 12 parts (1p6n2u3w) 3338 | -4/Factory | Core integrity fell below 50% 3355 | -4/Factory | Discovered new exit (range 11) 3367 | -4/Factory | System corruption reached 10% 3370 | -4/Factory | Entered Research 3370 | -3/Research | Evolved 2 slots: Utility x2 3540 | -3/Research | Found Antimissile System 3557 | -3/Research | Spotted B-86 Titan 3569 | -3/Research | Core integrity fell below 50% 3615 | -3/Research | Lost 12 parts (3p7n2u) 3634 | -3/Research | Core integrity fell below 20% 3665 | -3/Research | Destroyed by S-43 Plague with Heavy Machine Gun Last Messages --------------- 03625_ Slug penetrates Wall. 03630_ C-30 ARC bursts open, deploying its payload. 03630_ S-43 Plague unfolds itself. 03646_ S-43 Plague destroyed. 03648_ S-43 Plague suffers critical hit (Destroy). 03648_ Destroyed Xenon Bombardment Thruster. 03649_ Imp. Fusion Compressor destroyed. 03650_ S-43 Plague destroyed. 03651_ Acquired 23 matter. 03655_ Gravmag Array destroyed. 03657_ Targeting Computer destroyed. 03658_ S-43 Plague suffers critical hit (Destroy). 03658_ Destroyed Hvy. Machine Gun. 03660_ Slammed into S-43 Plague. 03660_ Destabilizing: System interference. 03660_ Dispersion Rifle temporarily disabled. 03662_ Slammed into S-43 Plague. 03663_ Xenon Bombardment Thruster destroyed. 03663_ Slammed into S-43 Plague. [Achievement: Just Browsing] Map ----- +----------------------------------------------------+ | ?????????????????????????????????????????????????? | | ?????????????????????????????????????????????????? | | ?????????????????????????????????????????????????? | | ?????????????????????????????????????????????????? | | ?????????????????????????????????????????????????? | | ?????????????????????????????????????????????????? | | ?????????????????????????????????????????????????? | | ?????????????????????????????????????????????????? | | ?????????????????????????????????????????????????? | | ?????????????????????????????????????????????????? | | ?????????????????????????????????????????????????? | | ?????????????????????????????????????????????????? | | ?????????????????????????????????????????????????? | | ?????????????????????????????????????????????????? | | ?????????????????????????????????????????????????? | | ?????????????????????????????????????????? ??????? | | ?????????????????????????????????????????? ??????? | | ?????????????????????????????????????????? #?????? | | ???????????????????????##############????? #?????? | | ???????????????????????# ! #????? #?????? | | ???????????????????????# !!! #????? #?????? | | ???????????????????????# !!! #????? #?????? | | ???????????????????????# % !!! #????#"#?????? | | ??????????????????#????# =%%% #??###%####??? | | ??????????????????# ###s#########???# " #??? | | ??????????????????# @s s ########## #??? | | ??????????????????# s p R ! #??? | | ??????????????????# pRps +??? | | ??????????????????# ########## #??? | | ??????????????????#########+###????????# #??? | | ???????????????????????????????????????## ##??? | | ????????????????????????????????????????# #???? | | ????????????????????????????????????????# ##### | | ????????????????????????????????????????# | | ????????????????????????????????????????# | | ????????????????????????????????????????# | | ????????????????????????????????????????# | | ??????????????????????????????????####### # ## | | ??????????????????????????????????# | | ??????????????????????????????????# | | ??????????????????????????????????# """ """ # | | ??????????????????????????????????# """ """ | | ??????????????????????????????????# "S """ %# | | ??????????????????????????????????# """ % | | ??????????????????????????????????# "" ### | | ??????????????????????????????????# """ # | | ??????????????????????????????????# """ # | | ??????????????????????????????????# ! """ # | | ??????????????????????????????????# | | ??????????????????????????????????# ! #% | +----------------------------------------------------+ Best States ------------- Heat Dissipation 65 Energy Generation 37 Energy Capacity 290 Matter Stores 300 Matter Capacity 300 Sight Range 16 Robot Scan Range 15 Terrain Scan Range 14 Terrain Scan Density 210 ECM Strength 1 Additional Mass Support 6 Armor Coverage 150 Resistance: KI 20 Resistance: TH 20 Propulsion Shielding 33 Weapon Cycling 15 Phase Shifting 5 Evasion (%) 70 Targeting Accuracy 5 Melee Accuracy 6 Recoil Reduction 5 Kinecelleration 40 Force Boost 20 Offensive Hacking 14 Defensive Hacking 22 Item Schematics ----------------- VTOL Module | -9/Materials | Scanalyzed Xenon Bombardment Thruster | -6/Factory | Hacked Imp. Sensor Array | -6/Factory | Hacked Robot Schematics ------------------ None Fabricated ------------ Imp. Sensor Array | x1 | -6/Factory Alien Tech Used ----------------- None Achievements -------------- Close Call Fist Fight Just Browsing Universal Adapter Challenges ------------ None Game ------ Seed VortexCoolingSword Manual? 0 Play Time 02:13:11 Cumulative 19.0 hours Start 2023.05.17 @ 17:20:12 End 2023.05.18 @ 14:14:20 Sessions 5 Manual Loads 0 Difficulty Rogue Special Mode None Game No. 14 Rogue 14 Adventurer 0 Explorer 0 Win Type - Total 1 Types 1/0/0/0/0/0/0/0/0 Lore% 22 Gallery% 25 Achievement% 24 Wizard Run 0 Options --------- ASCII 1 Keyboard 1 Movement Numpad Keybinds 0 Fullscreen 1 Font 18/SmallcapsGlow Map View 76x50 Tactical HUD 1 Map Filters NONE Filters NONE Steam 1 RUN: 6cc96ad7-6b3c-4307-8a11-edc3a7f9a530